Cogmind - Beta 14 @@@ ROGUE MODE // 2025.03.30 @ 18:02:10 Player: golanco Result: Destroyed by BB-QXZ(R) with Subdweller Machine Gun Performance ------------- Evolutions (0) 0 Regions Visited (2) 400 Robots Destroyed (10) 50 Value Destroyed (361) 361 Prototype IDs (11) 220 Alien Tech Used (0) 0 Bonus (0) 0 TOTAL SCORE: 1031 Bonus ------- None Cogmind --------- Core Integrity 0/250 Matter 157/300 Energy 125/125 System Corruption 0% Temperature Cool (0) Movement Core (250) Ox4 Location -10/Subcaves Parts ------- > --- POWER (1+1) ------ Light Ion Engine > --- PROPULSION (2+1) - (None) > --- UTILITY (2+1) ---- Small Storage Unit Sensor Array Rainbow Chip (+) > --- WEAPON (2+1) ----- Battle Cannon Battle Cannon > --- INVENTORY (8) ---- Ion Engine Subdweller Power Source Subdweller Power Source Subdweller Monowheel Subdweller Optics Scrap Shield Peak State ------------ > --- POWER ------------ Light Ion Engine > --- PROPULSION ------- Light Treads > --- UTILITY ---------- Small Storage Unit Sensor Array Rainbow Chip > --- WEAPON ----------- Battle Cannon Battle Cannon > --- INVENTORY -------- Ion Engine Subdweller Power Source Subdweller Power Source Subdweller Monowheel Subdweller Optics Scrap Shield [Rating: 22] Favorites ----------- Power Subdweller Power Source Engine Subdweller Power Source Propulsion Light Treads Treads Light Treads Utility Small Storage Unit Device Sensor Array Storage Small Storage Unit Processor Rainbow Chip Weapon Subdweller Machine Gun Energy Gun EM Pulse Gun Ballistic Gun Subdweller Machine Gun Ballistic Cannon Battle Cannon Build | -11 -10 -10 ------- Run | Yrd Mat Sub Slots Evolved . | . . . Power . | . . . Propulsion . | . . . Utility . | . . . Weapon . | . . . Parts Attached 19 | 8 1 10 Power 4 | 1 . 3 Engine 4 | 1 . 3 Core . | . . . Reactor . | . . . Propulsion 2 | 2 . . Treads 2 | 2 . . Leg . | . . . Wheel . | . . . Hover . | . . . Flight . | . . . Utility 5 | 2 1 2 Device 3 | 1 1 1 Storage 1 | 1 . . Processor 1 | . . 1 Hackware . | . . . Protection . | . . . Artifact . | . . . Weapon 8 | 3 . 5 Energy Gun 1 | 1 . . Energy Cannon . | . . . Ballistic Gun 5 | 2 . 3 Ballistic Cannon 2 | . . 2 Launcher . | . . . Special Weapon . | . . . Impact Weapon . | . . . Slashing Weapon . | . . . Piercing Weapon . | . . . Special Melee Weapon . | . . . Unidentified Prototypes . | . . . Parts Lost 6 | . . 6 Power . | . . . Propulsion 2 | . . 2 Utility . | . . . Weapon 4 | . . 4 Highest Loss Streak 3 | . . 3 To Critical Strikes . | . . . Average Slot Usage (%) 82 | . 100 78 Engine 13 | . 14 13 Treads 18 | . 28 16 Device 13 | . 14 13 Storage 13 | . 14 13 Energy Gun 2 | . 14 . Ballistic Gun 12 | . 14 12 Ballistic Cannon 5 | . . 7 Peak Build Rating 22 | 7 7 22 Average Rating 9 | 5 6 9 On Entrance 4 | . 7 7 Naked Turns . | . . . Heaviest Build 19 | 15 15 19 Greatest Support 40 | 40 40 40 Greatest Overweight (x) 4 | 1 . 4 Average Overweight (x) . | . . . Largest Inventory Capacity 8 | 8 8 8 Average Capacity 7 | 7 8 8 Most Carried 8 | 2 4 8 Average Carried 6 | 1 2 7 Final Capacity 8 | 8 8 8 Final Carried 7 | 2 3 7 Class Distribution -------------------- 100% | Mutant Dominant Class ---------------- Mutant | -10/Materials Mutant | -10/Subcaves Resources | -11 -10 -10 ----------- Run | Yrd Mat Sub Matter Collected 701 | 238 45 418 Remotely . | . . . Salvage Created 359 | 26 45 288 Parts 25 | 4 1 20 Haulers Intercepted . | . . . Recyclers Shooed . | . . . Parts Field Recycled . | . . . Retrieved Matter . | . . . Parts Self-Destructed 4 | . . 4 Prevented . | . . . Kills | -11 -10 -10 ------- Run | Yrd Mat Sub Combat Hostiles Destroyed 9 | . 1 8 Guns 7 | . 1 6 Cannons 2 | . . 2 Classes Destroyed 3 | 1 1 1 Tunneler 1 | 1 . . Grunt 1 | . 1 . Subdweller 8 | . . 8 Best Kill Streak 2 | 1 1 2 Combat Bots Only 2 | . 1 2 Max Kills in Single Turn 1 | 1 1 1 Gunslinging . | . . . Exploded . | . . . Melee . | . . . Uniques/NPCs Destroyed . | . . . Combat | -11 -10 -10 -------- Run | Yrd Mat Sub Hostile Shots Fired 75 | . 4 71 Missed 19 | . 1 18 Damage Taken 1147 | . 32 1115 Core 254 | . . 254 Absorbed by Shields . | . . . Core Remaining (%) 100 | 100 . . Volleys Fired 99 | 1 2 96 Largest 2 | 2 2 2 Hottest 78 | 60 60 78 Shots Fired 173 | 2 4 167 Gun 136 | 2 4 130 Cannon 37 | . . 37 Launcher . | . . . Special . | . . . Kinetic 162 | 1 2 159 Thermal . | . . . Explosive . | . . . Electromagnetic 11 | 1 2 8 Robot Hit Streak 15 | 1 5 15 Robot Miss Streak 3 | . . 3 Penetration Max . | . . . Secondary Targets 1 | . . 1 Max Gunslinging Chain 1 | . . 1 Shots Hit Robots 70 | 1 4 65 Core Hits 18 | 1 2 15 Critical Kills . | . . . Critical Parts Destroyed . | . . . Critical Strikes 2 | . . 2 Destroy 1 | . . 1 Blast 1 | . . 1 Melee Attacks . | . . . Impact . | . . . Slashing . | . . . Piercing . | . . . Sneak Attacks . | . . . Combat Hostiles . | . . . Follow-up Attacks . | . . . Damage Inflicted 1102 | 11 54 1037 Guns 887 | 11 54 822 Cannons 215 | . . 215 Explosions . | . . . Melee . | . . . Ramming . | . . . Kinetic 985 | 11 27 947 Thermal . | . . . Explosive . | . . . Electromagnetic 117 | . 27 90 Impact . | . . . Slashing . | . . . Piercing . | . . . Highest Corruption . | . . . Average Corruption . | . . . Corruption Purged . | . . . Corruption Blocked . | . . . Overload Shots . | . . . Overflow Damage . | . . . Projectiles . | . . . Explosions . | . . . Melee . | . . . Knockbacks 2 | . . 2 Impact . | . . . Kinetic 2 | . . 2 Secondary . | . . . Self-Inflicted Damage . | . . . Shots . | . . . Rammed . | . . . Targets Rammed . | . . . Kicked . | . . . Crushed . | . . . Highest Temperature 12 | . 12 . Average Temperature 10 | . 10 . Received Heat Transfer 174 | . 18 156 Siege Activations . | . . . Robots Corrupted . | . . . Combat Hostiles . | . . . Parts Fried 1 | . . 1 Impact Corruptions . | . . . Robots Melted . | . . . Combat Hostiles . | . . . Parts Melted . | . . . Heat Transferred . | . . . Parts Sabotaged . | . . . Parts Stolen . | . . . Parts Stripped . | . . . Power Chain Reactions . | . . . Alert | -11 -10 -10 ------- Run | Yrd Mat Sub Peak Influence 23 | 5 23 . Initial 3 | . 3 . Average 8 | 2 10 . Maximum Alert Level . | . . . Low Security (%) 100 | 100 100 . Level 1 . | . . . Level 2 . | . . . Level 3 . | . . . Level 4 . | . . . Level 5 . | . . . High Security . | . . . Max Security . | . . . Squads Dispatched . | . . . Investigation . | . . . Extermination . | . . . Reinforcement . | . . . Assault . | . . . Garrison . | . . . Intercept . | . . . Searches Triggered . | . . . Construction Impeded . | . . . Haulers Reinforced . | . . . Active Scanning Responses . | . . . Cargo Convoy Interrupts . | . . . Stealth | -11 -10 -10 --------- Run | Yrd Mat Sub Distress Signals . | . . . Communications Jammed . | . . . Distress Signals . | . . . Times Spotted 12 | . 1 11 Peak Tracking Total 3 | . 1 3 Tactical Retreats . | . . . Traps | -11 -10 -10 ------- Run | Yrd Mat Sub Traps Triggered . | . . . Indirectly . | . . . Trap Hack Attempts . | . . . Triggered . | . . . Disarmed . | . . . Reprogrammed . | . . . Reused . | . . . Traps Extracted . | . . . Installed . | . . . Triggered 3 | . . 3 Machines | -11 -10 -10 ---------- Run | Yrd Mat Sub Machines Disabled 1 | . . 1 Max in Single Turn 1 | . . 1 Machines Repaired . | . . . Machines Dismantled . | . . . Machines Sabotaged . | . . . Overloaded Fab Kills . | . . . Hacking | -11 -10 -10 --------- Run | Yrd Mat Sub Machines Accessed 4 | . 2 2 Terminals 2 | . 2 . Fabricators . | . . . Repair Stations . | . . . Recycling Units . | . . . Scanalyzers . | . . . Garrison Access . | . . . Total Hacks 18 | . 4 14 Successful 14 | . . 14 Failed 4 | . 4 . Catastrophic 1 | . 1 . Database Lockouts . | . . . Manual 4 | . 4 . Terminals 4 | . 4 . Fabricators . | . . . Repair Stations . | . . . Recycling Units . | . . . Scanalyzers . | . . . Garrison Access . | . . . Terminal Hacks 14 | . . 14 Record 13 | . . 13 Derelict Proto ID Bank 1 | . . 1 Fabricator Hacks . | . . . Repair Station Hacks . | . . . Recycling Unit Hacks . | . . . Scanalyzer . | . . . Garrison Access Hacks . | . . . Unauthorized Hacks . | . . . Terminals . | . . . Fabricators . | . . . Repair Stations . | . . . Recycling Units . | . . . Scanalyzers . | . . . Garrison Access . | . . . Data Cores Recovered . | . . . Used . | . . . Hacking Detections 2 | . 2 . Full Trace Events 1 | . 1 . Feedback Events . | . . . Feedback Blocked . | . . . Robot Schematics Acquired . | . . . Robots Built . | . . . Authchips . | . . . Time . | . . . Total Robot Build Rating . | . . . Part Schematics Acquired . | . . . Parts Built . | . . . Authchips . | . . . Time . | . . . Total Part Build Rating . | . . . Parts Repaired . | . . . Time . | . . . Parts Recycled . | . . . Recycled Matter . | . . . Retrieved Matter . | . . . Retrieved Components . | . . . Parts Scanalyzed . | . . . Part Schematics Acquired . | . . . Parts Damaged . | . . . Bothacking | -11 -10 -10 ------------ Run | Yrd Mat Sub Used RIF Installer . | . . . Robots Hacked . | . . . Non-combat . | . . . Combat . | . . . Robot Hacks Applied . | . . . Relay Couplers Released . | . . . Fabnet Peak Effective % . | . . . Robots Rewired . | . . . Allies Hacked . | . . . Hacks Repelled . | . . . Allies | -11 -10 -10 -------- Run | Yrd Mat Sub Total Allies . | . . . Largest Group . | . . . Highest-Rated Group . | . . . Highest-Rated Ally . | . . . Total Orders . | . . . Ally Attacks . | . . . Total Damage . | . . . Kills . | . . . Allies Corrupted . | . . . Allies Melted . | . . . Intel | -11 -10 -10 ------- Run | Yrd Mat Sub Robot Analysis Total . | . . . Derelict Logs Recovered 1 | . . 1 Drone Launches . | . . . Drone Recoveries . | . . . Exploration | -11 -10 -10 ------------- Run | Yrd Mat Sub Turns Passed 2032 | 81 353 1598 Spaces Moved 963 | 43 117 803 Core 5 | 4 . 1 Treads 958 | 39 117 802 Legs . | . . . Wheels . | . . . Hover . | . . . Flight . | . . . Fastest Speed 50 | 50 160 160 Average Speed 159 | 153 160 160 Slowest Speed 250 | 160 160 250 Overloaded Moves . | . . . Propulsion Burnouts . | . . . Robots Hopped . | . . . Cave-ins Triggered . | . . . Exploration Rate (%) 22 | 5 23 39 Regions Visited 2 Branch Regions 1 Pre-discovered Areas 2 | . . 2 Known Exits Taken . | . . . Unknown Exits Taken 2 | 1 1 . Scrap Searched 2 | . . 2 Spaces Dug . | . . . Terrain Destroyed 1 | . . 1 Melee . | . . . Projectile 1 | . . 1 AOE . | . . . Terrain Rammed . | . . . Walls Destroyed . | . . . Machines Disabled . | . . . Actions | -11 -10 -10 --------- Run | Yrd Mat Sub Total 1282 | 53 279 950 Wait 180 | . 158 22 Move 961 | 42 116 803 Hop . | . . . Pick Up 13 | 1 1 11 Fast Attach 12 | 8 . 4 Attach 4 | . 1 3 Detach 2 | 1 1 . Swap 3 | . . 3 Drop 8 | . . 8 Fire 99 | 1 2 96 Melee . | . . . Ram . | . . . Kick . | . . . Crush . | . . . Escape Stasis . | . . . Rewire . | . . . Trap . | . . . Miscellaneous . | . . . Route ------- -11/Scrapyard -10/Materials -10/Subcaves (discovered 2 exits: [*Mat x2]) History --------- Turn | Location | Event 52 | -11/Scrapyard | Discovered new exit (range 14) 82 | -11/Scrapyard | Entered Materials 311 | -10/Materials | Build established: Mutant 428 | -10/Materials | Discovered new exit (range 5) 435 | -10/Materials | Entered Subcaves 438 | -10/Subcaves | Shifting Twisted Machinery released Sub. Machine Gun 439 | -10/Subcaves | Shifting Twisted Machinery released Sub. Machine Gun 693 | -10/Subcaves | Learned location of Zion (-7) 752 | -10/Subcaves | Discovered new exit (range 11) 799 | -10/Subcaves | Lost 3 parts (1n2w) 833 | -10/Subcaves | Visited Clippyterm 838 | -10/Subcaves | Learned location of Deep Caves (-7) 838 | -10/Subcaves | Learned Factory fabricator intel 1121 | -10/Subcaves | Discovered new exit (range 10) 1158 | -10/Subcaves | Shifting Twisted Machinery released Battle Cannon 1161 | -10/Subcaves | Shifting Twisted Machinery released Sub. Beam Cannon 1183 | -10/Subcaves | Core integrity fell below 50% 1534 | -10/Subcaves | A swath of the cavern ceiling suddenly collapsed 1826 | -10/Subcaves | Visited 4L-MR0's lab 1847 | -10/Subcaves | Found Rainbow Chip 1849 | -10/Subcaves | Attached Rainbow Chip, gained temporary slots: Power, Propulsion, Utility, Weapon 2015 | -10/Subcaves | A Subdweller sparked back to life 2018 | -10/Subcaves | Core integrity fell below 20% 2033 | -10/Subcaves | Destroyed by BB-QXZ(R) with Subdweller Machine Gun Last Messages --------------- Powered Cannon 4L-MR0 mumbles to no one in particular: "Damn Subs sneaking around stealing my stuff." 4L-MR0 mumbles: "I'm surprised some of them are even willing to come in here given their fear of my usual visitors." Testing Chamber breached. Dropped Sensor Array. Acquired Rainbow Chip. Core temporarily expanded with Power slot. Core temporarily expanded with Propulsion slot. Core temporarily expanded with Utility slot. Core temporarily expanded with Weapon slot. Acquired Sensor Array. XM-J7Y(R) creaks and sparks as it begins to move. BB-QXZ(R) knocked back. XM-J7Y(R) affixes Scrap Shield Fragment to Scrap Shield. Lgt. Treads destroyed. Map ----- +----------------------------------------------------+ | #???## ##???????####### ##??# ##???????? | | ##?## #????????# #### ##### #???????? | | ### ###### #??## ## #???????? | | ## ##????? #?## ## #???????? | | #?????# #### ## #???????? | | ##?????# #### ######### #???????? | | ##??????# ### ####???????## #???????? | | #####???????# ## ##??????????## #???????? | | #??????????## ### ##??????????## #???????? | | ?????????# #?# #???????##### #???????? | | ???????# ### ##????#### ##???????? | | ## ?????# #????## #####????? | | ##?### ???## #????# ##???? | | ???????## #??## #####????## #???? | | ??????????#??# #?????????### ## ##???? | | ?????????????## #??????####?#### #????? | | ??????????????## ###?????? ##??# #????? | | ???????????????# ##?????? & ???# #????? | | ?????????????### #?????? " ???## #????? | | ?????## ????# #?????? ?????# #????? | | ????## ### #??????%&